[Event "Slovakia Open 2022"]
[Site "Bratislava"]
[Date "2022.09.30"]
[Round "1.8"]
[White "Meszaros, Casey Ryan"]
[Black "Kushko, Dmitriy"]
[Result "1/2-1/2"]
[ECO "A41"]
[WhiteElo "1925"]
[BlackElo "2302"]
[Annotator "TA"]
[PlyCount "117"]
[EventDate "2022.09.30"]
[EventCountry "SVK"]
[SourceTitle "playchess.com"]
[Source "ChessBase"]
[SourceQuality "1"]
[TimeControl "2700+10"]

{[%evp 9,117,7,0,7,1,-16,-7,-18,-18,-18,-18,-40,-24,-65,-53,-58,-55,-89,-32,-51,-47,-46,-43,-80,-80,-110,-73,-108,-110,-124,-124,-124,-131,-135,-82,-79,-69,-81,-74,-92,-79,-96,-67,-82,-60,-70,-54,-88,-50,-66,-42,-72,-26,-24,-25,-37,-17,-29,-29,-29,-8,-12,0,0,0,0,110,157,142,0,0,0,42,0,0,-6,-6,-8,0,0,0,0,0,0,0,0,8,0,0,0,0,0,277,237,233,12,12,12,12,8,8,8,8,8,8,8,8,8,8,-4766]} 1. d4 {[%emt 0:00:17]} d6 {[%emt 0:00:03]} 2. c4 {[%emt 0:00:13]} g6 {[%emt 0:00:05]} 3. Nc3 {[%emt 0:00:05]} Bg7 {[%emt 0:00:03]} 4. e3 {[%emt 0:00:12]} e5 {[%emt 0:02:06]} 5. d5 {[%emt 0:01:03]} f5 {[%emt 0:01:02]} 6. e4 {[%emt 0:00:30] A41: 1 d4 d6: Tartakower System and Modern Defence.} Nf6 {[%emt 0:00:48]} 7. Bd3 {[%emt 0:00:31]} O-O {[%emt 0:02:09] [#]} 8. Bg5 $146 {[%emt 0:00:40]} ({Predecessor:} 8. Nge2 Na6 9. exf5 gxf5 10. Ng3 Ng4 11. Be2 Qh4 12. Bxg4 fxg4 13. Be3 Bh6 14. Qd2 Bxe3 15. fxe3 {0-1 (68) Pastar,S (2295)-Burovic,R (2393) Sarajevo 2019}) 8... h6 {[%emt 0:00:32]} 9. Bxf6 {[%emt 0:00:10]} Qxf6 {[%emt 0:00:05]} 10. Qd2 {[%emt 0:01:05]} Na6 {[%emt 0:00:56]} 11. O-O-O {[%emt 0:02:11]} Nc5 {[%emt 0:03:47]} 12. f3 $1 {[%emt 0:01:52]} a6 $36 {[%emt 0:08:53][%cal Ob7b5][%mdl 2048] Black is pushing.} 13. Nge2 {[%emt 0:01:08]} Qg5 {[%emt 0:03:01]} ({Black should play} 13... Nxd3+ $17 14. Qxd3 Qg5+ 15. Qd2 Qxg2) 14. Qxg5 {[%emt 0:00:43]} Nxd3+ {[%emt 0:00:40]} 15. Rxd3 {[%emt 0:00:04]} hxg5 {[%emt 0:00:02]} 16. b4 {[%emt 0:01:31]} g4 {[%emt 0:01:35]} 17. Rf1 {[%emt 0:01:25]} Bd7 {[%emt 0:03:03]} 18. Ng3 {[%emt 0:04:15]} gxf3 {[%emt 0:03:11]} 19. Rdxf3 {[%emt 0:03:35][%cal Re4f5]} f4 {[%emt 0:00:05]} 20. Nge2 {[%emt 0:00:17][%cal Bg3e2,Be2g1,Bg1f3][%mdl 32]} g5 {[%emt 0:03:48]} 21. h3 {[%emt 0:00:37]} g4 {[%emt 0:00:15]} (21... Rfc8 $142 22. Kb2 Kf7) 22. hxg4 $17 {[%emt 0:00:38]} Bxg4 {[%emt 0:02:56]} 23. R3f2 {[%emt 0:00:10]} Rf6 {[%emt 0:00:10][%cal Bf8f6,Bf6h6,Bh6h1][%mdl 32]} 24. Ng1 {[%emt 0:00:45]} Kf7 {[%emt 0:00:20]} 25. Nf3 {[%emt 0:00:09]} Rh8 {[%emt 0:00:09]} 26. Kc2 {[%emt 0:00:14]} Ke7 {[%emt 0:00:10]} 27. Kb3 {[%emt 0:00:17]} Rfh6 {[%emt 0:00:02]} 28. a4 {[%emt 0:00:51]} Bf6 {[%emt 0:00:31]} 29. c5 {[%emt 0:00:26]} Rh1 {[%emt 0:00:42]} 30. Kc4 {[%emt 0:00:18]} Bd7 {[%emt 0:01:09]} (30... b6 $17) 31. b5 $11 {[%emt 0:00:42]} dxc5 {[%emt 0:01:00]} 32. Kxc5 {[%emt 0:00:13]} b6+ {[%emt 0:01:41]} 33. Kc4 {[%emt 0:00:06]} axb5+ {[%emt 0:02:11]} 34. Nxb5 {[%emt 0:00:46]} c6 {[%emt 0:00:03]} 35. Nc3 {[%emt 0:00:33]} Kd6 {[%emt 0:01:16]} 36. Rxh1 {[%emt 0:00:38]} Rxh1 {[%emt 0:00:03]} 37. Rb2 {[%emt 0:00:08]} Rc1 {[%emt 0:02:35]} (37... cxd5+ $11 38. Nxd5 Bd8) 38. Rxb6 $16 {[%emt 0:00:48]} Kc7 {[%emt 0:00:01]} 39. Rb1 {[%emt 0:00:55]} (39. a5 $16) 39... cxd5+ $11 {[%emt 0:00:05]} 40. exd5 {[%emt 0:00:04]} Rc2 {[%emt 0:00:25]} 41. Ne1 {[%emt 0:00:23]} Rd2 {[%emt 0:00:10]} 42. Rd1 {[%emt 0:03:38]} Rxd1 {[%emt 0:00:09]} 43. Nxd1 {[%emt 0:00:01]} Bxa4 {[%emt 0:00:01][%mdl 4096] Endgame KBB-KNN} 44. Nc3 {[%emt 0:00:03]} Be8 {[%emt 0:00:14]} 45. Ne4 {[%emt 0:00:07]} Bg7 {[%emt 0:00:13]} 46. Nf3 {[%emt 0:00:36]} Bg6 {[%emt 0:00:06]} 47. Nfg5 {[%emt 0:00:21]} Kd7 {[%emt 0:00:10]} 48. Nc5+ {[%emt 0:00:13]} Ke7 {[%emt 0:00:09]} 49. Nge4 {[%emt 0:00:14] Threatens to win with d6+.} Bf7 {[%emt 0:00:07]} 50. Nb7 {[%emt 0:00:29]} Bg6 $2 {[%emt 0:00:20][%mdl 8192] [#]} (50... Bg8 $11) 51. d6+ $1 $18 {[%emt 0:01:36]} Ke8 {[%emt 0:00:12] [#]} 52. Nec5 {[%emt 0:00:30]} (52. Kd5 $1 $18 {[%cal Rd5e6]}) 52... Bf5 $11 {[%emt 0:00:07] The position is equal.} 53. Kd5 {[%emt 0:00:19] aiming for Ne4.} Bg4 $1 {[%emt 0:00:13]} 54. Ne6 {[%emt 0:00:54]} Bf6 {[%emt 0:00:05]} 55. Nbc5 {[%emt 0:00:14]} f3 {[%emt 0:00:05]} 56. d7+ {[%emt 0:01:05]} Kf7 {[%emt 0:00:03]} 57. gxf3 {[%emt 0:00:42]} Bxf3+ {[%emt 0:00:02]} 58. Kd6 {[%emt 0:00:23]} e4 {[%emt 0:00:06]} 59. Nd8+ $2 {[%emt 0:00:36][%mdl 40960] Quite a comeback for Black.  Weighted Error Value: White=0.19 (very precise) /Black=0.22 (precise) . An unexpected result.} 1/2-1/2

[Event "Slovakia Open 2022"]
[Site "Bratislava"]
[Date "2022.09.30"]
[Round "1.10"]
[White "Durovka, Stefan"]
[Black "Leniart, Arkadiusz"]
[Result "0-1"]
[ECO "D04"]
[WhiteElo "1783"]
[BlackElo "2479"]
[Annotator "TA"]
[PlyCount "64"]
[EventDate "2022.09.30"]
[EventCountry "SVK"]
[SourceTitle "playchess.com"]
[Source "ChessBase"]
[SourceQuality "1"]
[TimeControl "2700+10"]

{[%evp 9,63,0,-1,-24,-34,-33,-44,-48,-53,-59,-54,-88,-72,-89,-79,-75,-73,-136,-77,-147,-87,-125,-103,-222,-197,-210,-217,-205,-203,-249,-246,-298,-289,-394,-354,-369,-368,-361,-367,-365,-360,-648,-654,-1027,-1028,-1133,-1135,-1135,-1072,-29978,-29979,-29995,-29996,-29998,-29999,-29999]} 1. Nf3 {[%emt 0:00:08]} d5 {[%emt 0:00:02]} 2. e3 {[%emt 0:00:05]} Nf6 {[%emt 0:00:40]} 3. d4 {[%emt 0:00:02]} c6 {[%emt 0:02:21]} 4. Nc3 {[%emt 0:00:33]} Bg4 {[%emt 0:00:32]} 5. Be2 {[%emt 0:00:29]} Nbd7 {[%emt 0:00:04]} 6. h3 {[%emt 0:00:04] D04: Colle System.} Bxf3 {[%emt 0:00:31]} 7. Bxf3 {[%emt 0:00:03]} e5 {[%emt 0:00:04]} 8. dxe5 {[%emt 0:00:18] Black is slightly better.} Nxe5 {[%emt 0:00:03] [#]} 9. Bd2 $146 {[%emt 0:00:09]} ({Predecessor:} 9. a3 Be7 10. O-O O-O 11. b3 Rc8 12. Bb2 Qc7 13. Qe2 Rfe8 14. Rad1 Rcd8 15. Kh1 {1-0 (54) Tubakin,L (1967)-Fomichev,S (2020) Zelenograd 2014}) 9... Bd6 {[%emt 0:00:17]} 10. Be2 {[%emt 0:00:10]} Qe7 {[%emt 0:00:34]} 11. O-O {[%emt 0:00:24]} O-O-O {[%emt 0:01:21]} 12. f4 {[%emt 0:00:13]} Ned7 {[%emt 0:00:24]} 13. Bf3 {[%emt 0:00:08]} (13. Bd3 $142) 13... Rhe8 {[%emt 0:00:31]} (13... Bc5 $142 14. Qe2 Nb6) 14. a3 {[%emt 0:00:17]} (14. Ne2 $142) 14... Nc5 {[%emt 0:00:58]} ({Better is} 14... Nb6 {Strongly threatening ...Nc4.} 15. b3 Bxa3) 15. Ne2 {[%emt 0:00:34]} Nce4 {[%emt 0:00:12] Black is more active.} 16. b4 {[%emt 0:01:05]} (16. Ba5 $17) 16... Nxd2 $19 {[%emt 0:00:09]} 17. Qxd2 {[%emt 0:00:03]} Qxe3+ {[%emt 0:00:06]} 18. Qxe3 {[%emt 0:00:03]} Rxe3 {[%emt 0:00:03]} 19. Nd4 {[%emt 0:00:09]} g6 {[%emt 0:00:43] Inhibits Nf5.} ({Not} 19... Bxf4 $2 20. Nf5 Rc3 21. Nxg7) 20. Rfe1 {[%emt 0:00:09]} Bxf4 {[%emt 0:00:17]} 21. Red1 {[%emt 0:00:33]} Rde8 {[%emt 0:00:20]} 22. Kf1 {[%emt 0:00:15]} Ne4 {[%emt 0:00:36]} 23. Bxe4 {[%emt 0:01:25]} R8xe4 {[%emt 0:00:21]} ({Avoid the trap} 23... dxe4 $2 24. Re1 $19) 24. Nf3 {[%emt 0:00:51]} Rc3 {[%emt 0:01:13]} 25. Nd4 $2 {[%emt 0:01:43] [#]} (25. Ra2) 25... Be3 {[%emt 0:00:38]} 26. Nf3 {[%emt 0:01:42]} Rxc2 {[%emt 0:00:12]} 27. Ne1 {[%emt 0:04:43]} Rf4+ {[%emt 0:00:25]} 28. Nf3 {[%emt 0:00:29]} Rf2+ {[%emt 0:00:04]} 29. Ke1 {[%emt 0:00:09]} Rxg2 {[%emt 0:00:13] Black mates.} 30. Nd2 {[%emt 0:00:28]} Rff2 {[%emt 0:00:15]} 31. Ra2 {[%emt 0:00:27]} Rg1+ {[%emt 0:00:07]} 32. Nf1 {[%emt 0:00:03]} Rgxf1# {[%emt 0:00:03] Black took control after the opening.  Weighted Error Value: White=0.84/Black=0.09 (flawless)} 0-1

[Event "Slovakia Open 2022"]
[Site "Bratislava"]
[Date "2022.09.30"]
[Round "1.11"]
[White "Mikrut, Dariusz"]
[Black "Csontos, Aron"]
[Result "1-0"]
[ECO "D55"]
[WhiteElo "2316"]
[BlackElo "1962"]
[Annotator "TA"]
[PlyCount "85"]
[EventDate "2022.09.30"]
[EventCountry "SVK"]
[SourceTitle "playchess.com"]
[Source "ChessBase"]
[SourceQuality "1"]
[TimeControl "2700+10"]

{[%evp 22,85,38,37,32,32,95,82,89,87,81,56,132,53,73,73,76,37,43,52,181,183,189,182,156,-9,-10,-10,0,0,51,-19,-28,-24,329,139,139,140,140,140,131,99,183,189,304,324,370,365,1068,1062,1462,1424,1172,924,29990,29983,29992,29993,29998,29991,29995,29995,29995,29996,29998,29999]} 1. d4 {[%emt 0:00:02]} Nf6 {[%emt 0:00:04]} 2. c4 {[%emt 0:00:04]} e6 {[%emt 0:00:02]} 3. Nf3 {[%emt 0:00:03]} d5 {[%emt 0:00:07]} 4. Bg5 {[%emt 0:00:03]} Be7 {[%emt 0:00:11]} 5. Nc3 {[%emt 0:00:02]} O-O {[%emt 0:00:14]} 6. e3 {[%emt 0:00:05]} Nbd7 {[%emt 0:00:07]} 7. Qc2 {[%emt 0:00:12]} h6 {[%emt 0:00:09]} 8. Bh4 {[%emt 0:00:09]} b6 {[%emt 0:02:01]} 9. cxd5 {[%emt 0:00:04]} exd5 {[%emt 0:00:03]} 10. Bd3 {[%emt 0:00:04]} Bb7 {[%emt 0:00:10]} 11. O-O {[%emt 0:00:29]} c5 {[%emt 0:00:35]} 12. Rad1 {[%emt 0:00:15]} c4 {[%emt 0:01:17] D55: Queen's Gambit Declined: 4 Bg5 Be7: Lines without ...h6 and 6...h6 7 Bxf6.} 13. Bf5 {[%emt 0:00:04]} Nh5 {[%emt 0:05:39]} (13... Ne8 $14) 14. Bxe7 $16 {[%emt 0:05:27] White is much more active.} Qxe7 {[%emt 0:00:24] White is better.} 15. b3 {[%emt 0:00:19] [#]} a6 $146 {[%emt 0:01:54]} ({Predecessor:} 15... cxb3 16. Qxb3 Nhf6 17. Ne1 Ne4 18. Bxd7 Nxc3 19. Qxc3 Qxd7 20. Nd3 Ba6 21. Ne5 Qa4 {0-1 (38) Rojas Sepulveda,J (2305)-Ravi,T (2305) Maringa 1991}) 16. Rfe1 {[%emt 0:08:40]} g6 {[%emt 0:01:56]} (16... b5 $14) 17. Bh3 {[%emt 0:03:12]} (17. Bxd7 $16 Qxd7 18. Ne5) 17... f5 {[%emt 0:01:32]} 18. g3 {[%emt 0:00:57]} Nhf6 {[%emt 0:03:47]} 19. Bg2 {[%emt 0:00:16]} b5 {[%emt 0:00:29]} 20. Nh4 {[%emt 0:00:07]} Kg7 {[%emt 0:03:08]} (20... Qf7 $14) 21. bxc4 $18 {[%emt 0:00:03]} bxc4 {[%emt 0:00:06]} 22. Rb1 {[%emt 0:03:30]} Bc6 {[%emt 0:00:57] [#]} 23. Bh3 $2 {[%emt 0:00:04]} (23. Ne2 $1 $16 {[%cal Re2f4]}) 23... Ne4 $11 {[%emt 0:01:20]} 24. Ne2 {[%emt 0:01:07] And now Nf4 would win.} Rf6 {[%emt 0:04:07]} 25. Nf4 {[%emt 0:00:45] Black must now prevent Nfxg6.} Raf8 {[%emt 0:00:25]} ({Black should try} 25... Qf7 $11) 26. Bg2 {[%emt 0:00:36]} ({Better is} 26. Nfxg6 $1 $14 Rxg6 27. Nxf5+ Rxf5 28. Bxf5) 26... Kh7 {[%emt 0:00:48]} 27. f3 {[%emt 0:03:14]} g5 $2 {[%emt 0:04:03][%mdl 8192] [#]} (27... Nd6 $11 {and Black is okay.} 28. e4 fxe4 29. fxe4 dxe4 30. Nhxg6 Rxg6) 28. fxe4 {[%emt 0:00:10]} (28. Nxf5 $1 $18 {is the precise move to win.} Rxf5 29. fxe4 dxe4 30. d5 (30. Qxc4 gxf4 31. exf4 Bd5 $17)) 28... fxe4 $16 {[%emt 0:00:11] [#]} 29. Nhg6 {[%emt 0:00:37]} Rxg6 {[%emt 0:00:32]} 30. Nxg6 {[%emt 0:00:02]} Kxg6 {[%emt 0:00:05]} 31. Rf1 {[%emt 0:00:01]} Nf6 {[%emt 0:01:08]} (31... Rxf1+ $16 32. Bxf1 h5) 32. Rb6 $36 {[%emt 0:00:18][%csl LRa6,LRc6][%mdl 2048] White has strong initiative.} ({Don't take} 32. Qf2 $6 Kg7 $16) 32... Rc8 {[%emt 0:00:43]} (32... Qc7 $142 33. Rxa6 Qb7) 33. Qf2 {[%emt 0:00:19] Hoping for Qf5+.} ({Much less strong is} 33. Rxa6 $6 Qb7 34. Ra5 Bd7 $18) 33... Qe6 {[%emt 0:00:37] Against Qf5+} 34. Rxa6 {[%emt 0:00:34]} Rf8 $2 {[%emt 0:00:56] [#]} (34... Kg7 35. a4 Nd7) 35. Bh3 $1 {[%emt 0:01:07][%mdl 512]} Qd6 {[%emt 0:01:25]} (35... Qxh3 36. Rxc6) 36. Qf5+ {[%emt 0:00:09]} Kg7 {[%emt 0:00:04]} 37. Qe5 {[%emt 0:00:01]} Rd8 {[%emt 0:00:52] [#]} 38. Rxc6 $1 {[%emt 0:04:04][%mdl 512] White mates.} Qxc6 {[%emt 0:00:07]} (38... Qxe5 39. dxe5) 39. Qe7+ {[%emt 0:00:02]} Kg6 {[%emt 0:00:28]} 40. Qxd8 {[%emt 0:00:25]} c3 {[%emt 0:00:14]} 41. Qe7 {[%emt 0:01:01]} g4 {[%emt 0:01:17] [#]} 42. Bxg4 $1 {[%emt 0:00:59]} Nxg4 {[%emt 0:00:04]} (42... Qc7 43. Rxf6+) 43. Qf7+ {[%emt 0:00:02] Weighted Error Value: White=0.23 (precise) /Black=0.65} 1-0

[Event "Slovakia Open 2022"]
[Site "Bratislava"]
[Date "2022.09.30"]
[Round "1.12"]
[White "Pekar, Matus"]
[Black "Machata, Martin"]
[Result "0-1"]
[ECO "A57"]
[WhiteElo "1679"]
[BlackElo "2212"]
[Annotator "TA"]
[PlyCount "71"]
[EventDate "2022.09.30"]
[EventCountry "SVK"]
[SourceTitle "playchess.com"]
[Source "ChessBase"]
[SourceQuality "1"]
[TimeControl "2700+10"]

{[%evp 9,71,45,33,25,31,2,9,0,19,19,17,-13,25,-1,0,-25,-25,-25,-25,-20,-23,-25,-25,-31,-25,-29,-23,-21,-22,-27,-18,-75,-61,-133,-114,-116,-124,-166,-134,-195,-184,-204,-208,-209,-207,-215,-193,-394,-392,-370,-244,-440,-406,-543,-543,-479,-464,-666,-654,-1250,-1120,-1120,-1105,-1105]} 1. d4 {[%emt 0:00:04]} Nf6 {[%emt 0:00:51]} 2. c4 {[%emt 0:00:14]} c5 {[%emt 0:00:06]} 3. d5 {[%emt 0:00:11]} b5 {[%emt 0:00:02]} 4. Qc2 {[%emt 0:00:23]} b4 {[%emt 0:00:02]} 5. e4 {[%emt 0:02:24]} d6 {[%emt 0:00:02]} 6. f4 {[%emt 0:00:36] A57: Benko/Volga Gambit.} g6 {[%emt 0:00:09]} 7. Bd3 {[%emt 0:01:49]} (7. e5 $5 {[%cal Re5f6]} Nh5 8. a3 $11) 7... Bg7 {[%emt 0:00:04]} 8. Nf3 {[%emt 0:00:35] The position is equal.} O-O {[%emt 0:00:03]} 9. O-O {[%emt 0:00:05]} e6 {[%emt 0:00:11]} 10. Nbd2 {[%emt 0:03:08]} exd5 {[%emt 0:00:55] [#]} 11. exd5 $146 {[%emt 0:04:12]} ({Predecessor:} 11. cxd5 Ba6 12. Rb1 Bxd3 13. Qxd3 Nbd7 14. b3 Nb6 15. Bb2 a5 16. Nc4 Nxc4 17. bxc4 {1-0 (37) Shatko,D (2329)-Martinez Arca,M (1988) Cerdanyola del Valles 2015}) 11... Re8 {[%emt 0:00:20]} 12. Rb1 {[%emt 0:00:17]} Ng4 {[%emt 0:00:42] [#] ...Ne3 is the strong threat.} 13. Ne4 {[%emt 0:04:13]} f5 {[%emt 0:04:37]} 14. Nf2 {[%emt 0:03:02]} Nxf2 {[%emt 0:12:22]} 15. Rxf2 {[%emt 0:04:26]} Nd7 {[%emt 0:01:14]} 16. b3 {[%emt 0:05:12]} Nf6 {[%emt 0:03:25]} 17. Bb2 {[%emt 0:00:57]} Bd7 {[%emt 0:05:12]} 18. Re2 {[%emt 0:02:55]} Rxe2 {[%emt 0:00:35]} 19. Qxe2 {[%emt 0:00:03]} Qf8 {[%emt 0:01:49]} 20. Ng5 {[%emt 0:03:28]} (20. a3 $11 {remains equal.}) 20... Re8 $17 {[%emt 0:00:33]} 21. Ne6 {[%emt 0:01:01] White is on the road to losing.} ({White should play} 21. Qc2 $15) 21... Qf7 {[%emt 0:02:24][%cal Rd7e6]} 22. Re1 {[%emt 0:01:14] [#]} Nh5 $1 {[%emt 0:00:31] Strongly threatening ...Nxf4.} 23. Bc1 {[%emt 0:05:47]} Bd4+ {[%emt 0:00:49]} 24. Kh1 {[%emt 0:00:15]} (24. Kf1 $17) 24... Ng7 $19 {[%emt 0:00:18]} 25. Qf3 {[%emt 0:00:52]} Nxe6 {[%emt 0:02:41]} 26. dxe6 {[%emt 0:00:10]} Rxe6 {[%emt 0:00:11]} 27. Rxe6 {[%emt 0:00:41]} Bxe6 {[%emt 0:00:17]} 28. a3 $2 {[%emt 0:00:34]} (28. Be3) 28... d5 {[%emt 0:02:18][%cal Rd5c4]} 29. axb4 {[%emt 0:00:31]} cxb4 {[%emt 0:00:58][%cal Rd5c4]} 30. Bd2 $2 {[%emt 0:00:26]} (30. Be3 Bxe3 31. Qxe3) 30... a5 {[%emt 0:01:08][%cal Ba7a5,Ba5a4][%mdl 32]} ({Avoid the trap} 30... dxc4 $2 31. Qa8+ Kg7 32. bxc4 $19) 31. Qe2 {[%emt 0:00:17]} dxc4 {[%emt 0:00:24] Black is clearly winning.} 32. bxc4 {[%emt 0:00:14]} Qd7 {[%emt 0:01:12]} 33. Qd1 {[%emt 0:00:11]} (33. h3 $142) 33... Bc5 {[%emt 0:00:24]} 34. Qc2 {[%emt 0:00:07]} Qd4 {[%emt 0:00:10][%csl Gc5][%cal Rd4g1]} 35. Qb1 {[%emt 0:00:10] Prevents Qg1+.} a4 {[%emt 0:00:48] ( -> ...a3)} 36. Qe1 {[%emt 0:00:26] Weighted Error Value: White=0.63/Black=0.12 (very precise)} 0-1

[Event "Slovakia Open 2022"]
[Site "Bratislava"]
[Date "2022.09.30"]
[Round "1.13"]
[White "Matejovic, Juraj"]
[Black "Melih, Mario"]
[Result "1-0"]
[ECO "C68"]
[WhiteElo "2238"]
[BlackElo "1633"]
[Annotator "TA"]
[PlyCount "121"]
[EventDate "2022.09.30"]
[EventCountry "SVK"]
[SourceTitle "playchess.com"]
[Source "ChessBase"]
[SourceQuality "1"]
[TimeControl "2700+10"]

{[%evp 18,121,0,-6,37,58,52,-3,-8,-7,-6,-7,0,-4,-8,-38,-41,-20,0,-35,-24,-16,-27,-53,-26,-30,-18,-24,-16,-42,-19,-35,22,0,13,-6,0,0,0,0,52,50,116,116,97,11,8,-32,-28,-33,-38,-47,-41,-74,182,181,182,184,219,205,225,225,289,277,287,244,316,280,330,317,358,333,366,0,329,289,305,264,599,600,591,545,737,2773,2714,2694,2713,2700,1836,2579,2814,2188,6474,2354,1816,1801,6279,1682,1666,1439,1663,1593,5065,1484,922,885]} 1. e4 {[%emt 0:00:08] Schussler,H} e5 {[%emt 0:00:05]} 2. Nf3 {[%emt 0:04:16]} Nc6 {[%emt 0:00:10]} 3. Bb5 {[%emt 0:00:06]} a6 {[%emt 0:00:04]} 4. Bxc6 {[%emt 0:00:05]} dxc6 {[%emt 0:00:03]} 5. O-O {[%emt 0:00:08]} Bd6 {[%emt 0:00:13]} 6. d4 {[%emt 0:00:12]} exd4 {[%emt 0:01:21]} 7. Qxd4 {[%emt 0:00:09]} f6 {[%emt 0:00:03]} 8. Be3 {[%emt 0:03:04]} Be6 {[%emt 0:00:55]} 9. Nbd2 {[%emt 0:01:16]} Ne7 {[%emt 0:00:43]} 10. Rfd1 {[%emt 0:00:42]} O-O {[%emt 0:00:17] C68: Ruy Lopez: Exchange Variation, sidelines.} 11. Nc4 {[%emt 0:01:03][%cal Rc4d6]} Bb4 {[%emt 0:04:54][%cal Bd6b4,Bb4a5,Ba5b6][%mdl 32] [#] Strongly threatening ...Qxd4.} 12. Ncd2 $146 {[%emt 0:02:21]} (12. a3 $14 Qxd4 13. Nxd4 Bxc4 14. axb4) ({Predecessor:} 12. a3 Qxd4 13. Nxd4 Bxc4 14. axb4 Rfd8 15. Bf4 Rac8 16. Nf3 Rxd1+ 17. Rxd1 Be6 18. Nd4 {1-0 (58) Wahls,M (2560)-Nunn,J (2600) Munich 1991 CBM 023 [Schussler,H]}) 12... Qxd4 $11 {[%emt 0:01:11] The position is equal.} 13. Nxd4 {[%emt 0:00:24]} Bf7 {[%emt 0:00:05]} 14. Bf4 {[%emt 0:01:14]} Rad8 {[%emt 0:00:45]} 15. c3 {[%emt 0:00:16]} Ba5 {[%emt 0:00:01]} 16. N2b3 {[%emt 0:01:25]} Bb6 {[%emt 0:00:14]} 17. Be3 {[%emt 0:01:01]} Rd7 {[%emt 0:01:58]} 18. Nc2 {[%emt 0:12:10]} (18. Nf5 $5 {[%cal Rd1d7]} Rxd1+ 19. Rxd1 Nxf5 20. Bxb6 $11) 18... Rfd8 {[%emt 0:00:50]} 19. Rxd7 {[%emt 0:01:21]} Rxd7 {[%emt 0:00:28]} 20. Nbd4 {[%emt 0:11:11]} Kf8 {[%emt 0:12:58]} 21. f3 {[%emt 0:00:58]} Ng6 {[%emt 0:01:07]} 22. b3 {[%emt 0:01:23]} Ne5 {[%emt 0:01:16]} 23. Ne1 {[%emt 0:00:52]} g6 {[%emt 0:01:18]} 24. Kf1 {[%emt 0:00:06]} Ke7 {[%emt 0:01:44]} ({Black should try} 24... a5 $15) 25. Ke2 {[%emt 0:00:05]} (25. f4 $5 {[%cal Rf4e5]} Ng4 26. Bg1 $11) 25... a5 {[%emt 0:01:17][%cal Ba6a5,Ba5a4][%mdl 32]} (25... c5 $5 26. Ndc2 $8 g5 $11) 26. h3 {[%emt 0:00:45]} c5 {[%emt 0:03:20]} 27. Ndc2 {[%emt 0:00:02]} a4 {[%emt 0:00:43]} 28. c4 {[%emt 0:00:17]} Nc6 {[%emt 0:01:44]} (28... g5 $11) 29. Nd3 $14 {[%emt 0:00:14]} Nd4+ {[%emt 0:00:02]} (29... Ke8 $14) 30. Bxd4 $16 {[%emt 0:00:39]} cxd4 {[%emt 0:00:05] [#]} 31. Ncb4 {[%emt 0:01:22]} (31. c5 $1 $16 {[%cal Rc5b6]} Ba7 32. bxa4) 31... c6 $11 {[%emt 0:01:11]} 32. Kd2 {[%emt 0:00:28]} Rd8 {[%emt 0:00:37]} 33. Kc2 {[%emt 0:00:07]} Ra8 {[%emt 0:00:11]} 34. Re1 {[%emt 0:00:18]} Ba5 {[%emt 0:01:50][%cal Oc6c5] aiming for ...c5!} 35. Re2 {[%emt 0:00:01]} b5 $2 {[%emt 0:00:32][%mdl 8192]} (35... g5 $17 {keeps the pressure on.}) 36. Nxc6+ $18 {[%emt 0:00:04] Pair of Knights! Black is now going downhill.} Kd6 {[%emt 0:00:02]} 37. Nxa5 {[%emt 0:00:07]} ({But not} 37. Nxd4 $6 bxc4 38. e5+ fxe5 39. Nxe5 cxb3+ 40. Kd3 Bg8 41. axb3 a3 $14) 37... Rxa5 {[%emt 0:00:03][%mdl 4096] Endgame KRB-KRN} 38. c5+ {[%emt 0:00:41]} Kc7 {[%emt 0:00:43]} 39. b4 {[%emt 0:00:01]} Ra6 {[%emt 0:00:27]} 40. a3 {[%emt 0:00:01]} Bc4 {[%emt 0:00:17]} 41. Kd2 {[%emt 0:00:04]} Re6 {[%emt 0:00:14]} 42. Re1 {[%emt 0:00:13]} Kc6 {[%emt 0:00:37]} 43. h4 {[%emt 0:00:14]} Re7 {[%emt 0:00:44]} 44. Nf4 {[%emt 0:00:18]} Re5 {[%emt 0:01:12]} 45. Nd3 {[%emt 0:00:16]} Re7 {[%emt 0:00:03]} 46. g3 {[%emt 0:00:07]} Re8 {[%emt 0:00:48]} 47. f4 {[%emt 0:00:03]} h5 $2 {[%emt 0:00:33]} (47... Be6 {is tougher.} 48. Rg1 Bb3) 48. e5 {[%emt 0:00:18] White is clearly winning.} f5 {[%emt 0:02:46]} 49. e6 {[%emt 0:00:13]} Rxe6 {[%emt 0:00:23]} 50. Rxe6+ {[%emt 0:00:03]} Bxe6 {[%emt 0:00:01] KB-KN} 51. Ne5+ {[%emt 0:00:02]} Kd5 {[%emt 0:00:04]} 52. Kd3 {[%emt 0:00:09]} Bc8 {[%emt 0:00:24]} 53. Nxg6 {[%emt 0:00:03] White wants to mate with Ne7+.} Bb7 {[%emt 0:00:09]} 54. Ne5 {[%emt 0:00:15] And now Nf7 would win.} Ba8 {[%emt 0:00:13]} 55. Nf3 {[%emt 0:00:14]} (55. Nf7 $142 Bc6 56. Ne5) 55... Bc6 {[%emt 0:00:08]} 56. Nxd4 {[%emt 0:00:03]} Bd7 {[%emt 0:00:02]} 57. Ne2 {[%emt 0:00:18]} (57. Kc3 $142 Be8 58. Nxf5) 57... Bc6 {[%emt 0:00:07]} 58. Nc3+ {[%emt 0:00:06]} Ke6 {[%emt 0:00:03]} 59. Kd4 {[%emt 0:00:02]} Bd7 {[%emt 0:00:28]} 60. Nd5 {[%emt 0:00:15]} (60. c6 $142 Bxc6 61. Kc5) 60... Bc6 {[%emt 0:00:12]} 61. Ne3 {[%emt 0:00:20] Weighted Error Value: White=0.28 (precise) /Black=0.39} 1-0